fUST/lending_fUST_20250708
["ID","MTS","AMOUNT","RATE_DAILY","PERIOD"]
[370382715,1751988641743,-460.0,0.00019178,2]
[370382716,1751988641754,-490.93,0.00019178,2]
[370382717,1751988641764,-460.0,0.00019178,2]
[370382718,1751988641775,-460.0,0.00019178,2]
[370382719,1751988641785,-460.0,0.00019178,2]
[370382720,1751988641797,-758.19,0.00019178,2]
[370382721,1751988641807,-460.0,0.00019178,2]
[370382722,1751988641817,-460.0,0.00019178,2]
[370382723,1751988641827,-460.0,0.00019178,2]
[370382724,1751988641838,-460.0,0.00019178,2]
[370382725,1751988641848,-838.86,0.00019178,2]
[370382726,1751988641859,-460.0,0.00019178,2]
[370382727,1751988641870,-508.54,0.00019178,2]
[370382728,1751988641881,-5127.49,0.00019178,2]
[370382729,1751988641891,-460.0,0.00019178,2]
[370382730,1751988641902,-460.0,0.00019178,2]
[370382731,1751988641913,-321.73608126,0.00019178,2]
[370382732,1751988641923,-460.0,0.00019178,2]
[370382733,1751988641934,-460.0,0.00019178,2]
[370382734,1751988641947,-460.0,0.00019178,2]
[370382735,1751988641958,-474.90166585,0.00019178,2]
[370382736,1751988642228,-500.0,0.00019178,2]
[370382737,1751988642239,-460.0,0.00019178,2]
[370382738,1751988642248,-901.2,0.00019178,2]
[370382739,1751988642258,-460.0,0.00019178,2]
[370382740,1751988642267,-460.0,0.00019178,2]
[370382741,1751988642276,-462.17247759,0.00019178,2]
[370382742,1751988642286,-862.21,0.00019178,2]
[370382743,1751988642295,-460.0,0.00019178,2]
[370382744,1751988642305,-2753.27,0.00019178,2]
[370382745,1751988642314,-835.38,0.00019178,2]
[370382746,1751988642323,-460.0,0.00019178,2]
[370382747,1751988642332,-460.0,0.00019178,2]
[370382748,1751988642341,-658.66,0.00019178,2]
[370382749,1751988642350,-460.0,0.00019178,2]
[370382750,1751988642359,-460.0,0.00019178,2]
[370382751,1751988642368,-3833.71,0.00019178,2]
[370382752,1751988642377,-460.0,0.00019178,2]
[370382753,1751988642386,-460.0,0.00019178,2]
[370382754,1751988642396,-460.0,0.00019178,2]
[370382755,1751988642405,-460.0,0.00019178,2]
[370382756,1751988642414,-460.0,0.00019178,2]
[370382757,1751988642423,-460.0,0.00019178,2]
[370382758,1751988642434,-460.0,0.00019178,2]
[370382759,1751988642455,-646.83,0.00019178,2]
[370382760,1751988642465,-460.0,0.00019178,2]
[370382761,1751988642475,-469.10159919,0.00019178,2]
[370382762,1751988642484,-724.43,0.00019178,2]
[370382763,1751988642494,-460.0,0.00019178,2]
[370382764,1751988642504,-673.37,0.00019178,2]
[370382765,1751988642514,-460.0,0.00019178,2]
[370382766,1751988642526,-460.0,0.00019178,2]
[370382767,1751988642539,-664.63,0.00019178,2]
[370382768,1751988642550,-1708.39,0.00019178,2]
[370382769,1751988642559,-460.0,0.00019178,2]
[370382770,1751988642568,-597.74,0.00019178,2]
[370382771,1751988642579,-844.71,0.00019178,2]
[370382772,1751988642588,-460.0,0.00019178,2]
[370382773,1751988642598,-461.17921217,0.00019178,2]
[370382774,1751988642607,-2473.14,0.00019178,2]
[370382775,1751988642616,-487.61,0.00019178,2]
[370382776,1751988642626,-646.14,0.00019178,2]
[370382777,1751988642635,-460.0,0.00019178,2]
[370382778,1751988642644,-1506.99,0.00019178,2]
[370382779,1751988642654,-460.0,0.00019178,2]
[370382780,1751988642663,-201.03521453,0.00019178,2]
[370382781,1751988642672,-460.0,0.00019178,2]
[370382782,1751988642681,-460.0,0.00019178,2]
[370382783,1751988642691,-460.0,0.00019178,2]
[370382784,1751988642701,-460.0,0.00019178,2]
[370382785,1751988642710,-460.0,0.00019178,2]
[370382786,1751988642719,-2788.13,0.00019178,2]
[370382787,1751988642729,-460.0,0.00019178,2]
[370382788,1751988642738,-460.0,0.00019178,2]
[370382789,1751988642747,-460.0,0.00019178,2]
[370382790,1751988642756,-460.0,0.00019178,2]
[370382791,1751988642766,-688.11,0.00019178,2]
[370382792,1751988642780,-460.0,0.00019178,2]
[370382793,1751988642789,-460.0,0.00019178,2]
[370382794,1751988642799,-460.0,0.00019178,2]
[370382795,1751988642808,-460.0,0.00019178,2]
[370382796,1751988642817,-460.0,0.00019178,2]
[370382797,1751988642826,-460.0,0.00019178,2]
[370382798,1751988642836,-460.0,0.00019178,2]
[370382799,1751988642845,-460.0,0.00019178,2]
[370382800,1751988642854,-460.0,0.00019178,2]
[370382801,1751988642863,-460.0,0.00019178,2]
[370382802,1751988642873,-460.0,0.00019178,2]
[370382803,1751988642882,-752.17,0.00019178,2]
[370382804,1751988642892,-707.53,0.00019178,2]
[370382805,1751988642901,-694.91,0.00019178,2]
[370382806,1751988642910,-460.0,0.00019178,2]
[370382807,1751988642920,-460.0,0.00019178,2]
[370382808,1751988642929,-460.0,0.00019178,2]
[370382809,1751988642940,-460.0,0.00019178,2]
[370382812,1751988642950,-470.00000005,0.00019178,2]
[370382813,1751988642959,-460.0,0.00019178,2]
[370382814,1751988642968,-460.0,0.00019178,2]
[370382815,1751988642978,-460.0,0.00019178,2]
[370382817,1751988642987,-2901.31,0.00019178,2]
[370382819,1751988642997,-460.0,0.00019178,2]
[370382820,1751988643007,-460.0,0.00019178,2]
[370382822,1751988643016,-605.75,0.00019178,2]
[370382824,1751988643030,-460.0,0.00019178,2]
[370382825,1751988643039,-594.62899518,0.00019178,2]
[370382826,1751988643049,-460.0,0.00019178,2]
[370382827,1751988643059,-1269.5,0.00019178,2]
[370382828,1751988643069,-460.0,0.00019178,2]
[370382829,1751988643079,-460.0,0.00019178,2]
[370382830,1751988643088,-460.0,0.00019178,2]
[370382831,1751988643098,-5408.87,0.00019178,2]
[370382832,1751988643108,-4052.16,0.00019178,2]
[370382833,1751988643117,-723.51,0.00019178,2]
[370382834,1751988643127,-460.0,0.00019178,2]
[370382835,1751988643137,-460.0,0.00019178,2]
[370382836,1751988643147,-460.0,0.00019178,2]
[370382838,1751988643157,-460.0,0.00019178,2]
[370382840,1751988643167,-2441.44,0.00019178,2]
[370382841,1751988643177,-460.0,0.00019178,2]
[370382842,1751988643187,-460.0,0.00019178,2]
[370382843,1751988643197,-1137.52,0.00019178,2]
[370382845,1751988643206,-681.91,0.00019178,2]
[370382847,1751988643216,-460.0,0.00019178,2]
[370382850,1751988643225,-580.0,0.00019178,2]
[370382852,1751988643235,-510.15,0.00019178,2]
[370382855,1751988643244,-776.58,0.00019178,2]
[370382859,1751988643255,-1009.01,0.00019178,2]
[370382862,1751988643264,-460.0,0.00019178,2]
[370382863,1751988643274,-1454.34,0.00019178,2]
[370382866,1751988643283,-677.21,0.00019178,2]
[370382870,1751988643292,-2559.5,0.00019178,2]
[370382874,1751988643302,-460.0,0.00019178,2]
[370382879,1751988643311,-960.91,0.00019178,2]
[370382882,1751988643321,-510.04,0.00019178,2]
[370382885,1751988643330,-460.0,0.00019178,2]
[370382889,1751988643339,-460.0,0.00019178,2]
[370382893,1751988643348,-460.0,0.00019178,2]
[370382897,1751988643358,-460.0,0.00019178,2]
[370382900,1751988643368,-460.0,0.00019178,2]
[370382903,1751988643378,-460.0,0.00019178,2]
[370382904,1751988643387,-3140.82,0.00019178,2]
[370382905,1751988643396,-460.0,0.00019178,2]
[370382906,1751988643406,-460.0,0.00019178,2]
[370382907,1751988643415,-507.52,0.00019178,2]
[370382908,1751988643426,-239.697894,0.00019178,2]
[370382909,1751988643437,-666.0,0.00019178,2]
[370382910,1751988643446,-334.6880442,0.00019178,2]
[370382911,1751988643456,-151.0,0.000192,2]
[370382912,1751988643465,-151.0,0.000192,2]
[370382913,1751988643475,-151.0,0.000192,2]
[370382914,1751988643484,-151.0,0.000193,2]
[370382915,1751988643493,-6932.02209883,0.00019329,2]
[370382916,1751988643503,-6000.12112762,0.00019383,2]
[370382917,1751988643512,-151.0,0.000194,2]
[370382918,1751988643521,-460.0,0.00019452,2]
[370382919,1751988643530,-460.0,0.00019452,2]
[370382920,1751988643542,-460.0,0.00019452,2]
[370382921,1751988643552,-460.0,0.00019452,2]
[370382922,1751988643562,-460.0,0.00019452,2]
[370382923,1751988643571,-460.0,0.00019452,2]
[370382924,1751988643580,-460.0,0.00019452,2]
[370382925,1751988643590,-460.0,0.00019452,2]
[370382926,1751988643599,-460.0,0.00019452,2]
[370382927,1751988643608,-1000.0,0.00019452,2]
[370382928,1751988643618,-485.77594695,0.00019452,2]
[370382929,1751988643627,-460.0,0.00019452,2]
[370382930,1751988643637,-460.0,0.00019452,2]
[370382931,1751988643647,-460.0,0.00019452,2]
[370382932,1751988643656,-469.34,0.00019452,2]
[370382933,1751988643666,-460.0,0.00019452,2]
[370382934,1751988643675,-460.0,0.00019452,2]
[370382935,1751988643685,-460.0,0.00019452,2]
[370382936,1751988643694,-505.38863357,0.00019452,2]
[370382937,1751988643704,-460.0,0.00019452,2]
[370382938,1751988643713,-436.92459533,0.00019452,2]
[370382940,1751988643723,-370.0,0.00019452,2]
[370382942,1751988643732,-460.0,0.00019452,2]
[370382944,1751988643741,-1027.44,0.00019452,2]
[370382946,1751988643751,-460.0,0.00019452,2]
[370382947,1751988643761,-222.94932843,0.00019452,2]
[370382948,1751988643771,-460.0,0.00019452,2]
[370382949,1751988643781,-460.0,0.00019452,2]
[370382950,1751988643790,-460.0,0.00019452,2]
[370382951,1751988643800,-460.0,0.00019452,2]
[370382952,1751988643810,-460.0,0.00019452,2]
[370382954,1751988643820,-863.55,0.00019452,2]
[370382955,1751988643829,-460.0,0.00019452,2]
[370382957,1751988643838,-460.0,0.00019452,2]
[370382959,1751988643849,-592.45,0.00019452,2]
[370382961,1751988643858,-460.0,0.00019452,2]
[370382962,1751988643867,-460.0,0.00019452,2]
[370382963,1751988643876,-512.5,0.00019452,2]
[370382964,1751988643886,-500.0,0.00019452,2]
[370382965,1751988643895,-941.19,0.00019452,2]
[370382966,1751988643905,-460.0,0.00019452,2]
[370382967,1751988643915,-460.0,0.00019452,2]
[370382968,1751988643925,-460.0,0.00019452,2]
[370382969,1751988643934,-460.0,0.00019452,2]
[370382970,1751988643944,-460.0,0.00019452,2]
[370382971,1751988643953,-460.0,0.00019452,2]
[370382972,1751988643962,-460.0,0.00019452,2]
[370382973,1751988643972,-460.0,0.00019452,2]
[370382974,1751988643982,-460.0,0.00019452,2]
[370382975,1751988643991,-460.0,0.00019452,2]
[370382976,1751988644001,-460.0,0.00019452,2]
[370382977,1751988644010,-460.0,0.00019452,2]
[370382978,1751988644020,-460.0,0.00019452,2]
[370382979,1751988644029,-898.19,0.00019452,2]
[370382980,1751988644039,-460.0,0.00019452,2]
[370382981,1751988644049,-460.0,0.00019452,2]
[370382982,1751988644058,-460.0,0.00019452,2]
[370382983,1751988644067,-468.58,0.00019452,2]
[370382984,1751988644077,-460.0,0.00019452,2]
[370382985,1751988644087,-811.62,0.00019452,2]
[370382986,1751988644096,-862.49,0.00019452,2]
[370382987,1751988644106,-444.42656015,0.00019452,2]
[370382988,1751988644115,-460.0,0.00019452,2]
[370382989,1751988644124,-460.0,0.00019452,2]
[370382990,1751988644133,-460.0,0.00019452,2]
[370382991,1751988644143,-520.83757941,0.00019452,2]
[370382992,1751988644153,-510.43,0.00019452,2]
[370382993,1751988644162,-460.0,0.00019452,2]
[370382994,1751988644172,-460.0,0.00019452,2]
[370382995,1751988644182,-460.0,0.00019452,2]
[370382996,1751988644192,-460.0,0.00019452,2]
[370382997,1751988644202,-1555.07,0.00019452,2]
[370382998,1751988644212,-460.0,0.00019452,2]
[370382999,1751988644222,-460.0,0.00019452,2]
[370383000,1751988644231,-460.0,0.00019452,2]
[370383001,1751988644241,-460.0,0.00019452,2]
[370383002,1751988644252,-463.66875312,0.00019452,2]
[370383003,1751988644261,-855.52,0.00019452,2]
[370383004,1751988644270,-460.0,0.00019452,2]
[370383005,1751988644280,-460.0,0.00019452,2]
[370383006,1751988644289,-460.0,0.00019452,2]
[370383007,1751988644299,-545.34,0.00019452,2]
[370383008,1751988644308,-460.0,0.00019452,2]
[370383009,1751988644318,-460.0,0.00019452,2]
[370383010,1751988644327,-460.0,0.00019452,2]
[370383011,1751988644337,-633.51,0.00019452,2]
[370383012,1751988644347,-460.0,0.00019452,2]
[370383013,1751988644356,-430.0,0.00019452,2]
[370383014,1751988644365,-460.0,0.00019452,2]
[370383015,1751988644375,-460.0,0.00019452,2]
[370383016,1751988644384,-460.0,0.00019452,2]
[370383017,1751988644394,-460.0,0.00019452,2]
[370383018,1751988644403,-159.7894581,0.00019452,2]
[370383019,1751988644413,-460.0,0.00019452,2]
[370383020,1751988644422,-1397.65,0.00019452,2]
[370383021,1751988644432,-460.0,0.00019452,2]
[370383022,1751988644443,-460.0,0.00019452,2]
[370383023,1751988644452,-460.0,0.00019452,2]
[370383024,1751988644461,-440.0,0.00019452,2]
[370383025,1751988644471,-460.0,0.00019452,2]
[370383026,1751988644480,-460.0,0.00019452,2]
[370383027,1751988644489,-1921.6,0.00019452,2]
[370383028,1751988644499,-460.0,0.00019452,2]
[370383029,1751988644508,-1435.95,0.00019452,2]
[370383030,1751988644518,-460.0,0.00019452,2]
[370383031,1751988644528,-460.0,0.00019452,2]
[370383032,1751988644541,-460.0,0.00019452,2]
[370383033,1751988644551,-460.0,0.00019452,2]
[370383034,1751988644560,-460.0,0.00019452,2]
[370383035,1751988644569,-460.0,0.00019452,2]
[370383036,1751988644579,-460.0,0.00019452,2]
[370383037,1751988644589,-538.23191412,0.00019452,2]
[370383038,1751988644599,-460.0,0.00019452,2]
[370383039,1751988644611,-460.0,0.00019452,2]
[370383040,1751988644621,-460.0,0.00019452,2]
[370383041,1751988644630,-474.48766616,0.00019452,2]
[370383042,1751988644640,-1026.07,0.00019452,2]
[370383043,1751988644649,-460.0,0.00019452,2]
[370383044,1751988644658,-585.62170476,0.00019452,2]
[370383045,1751988644668,-490.93,0.00019452,2]
[370383046,1751988644677,-460.0,0.00019452,2]
[370383047,1751988644688,-188.29,0.00019452,2]
[370383048,1751988644697,-460.0,0.00019452,2]
[370383049,1751988644707,-758.19,0.00019452,2]
[370383050,1751988644716,-356.03,0.00019452,2]
[370383051,1751988644725,-460.0,0.00019452,2]
[370383052,1751988644735,-460.0,0.00019452,2]
[370383053,1751988644744,-460.0,0.00019452,2]
[370383054,1751988644753,-838.86,0.00019452,2]
[370383055,1751988644762,-5127.49,0.00019452,2]
[370383056,1751988644772,-460.0,0.00019452,2]
[370383057,1751988644781,-460.0,0.00019452,2]
[370383058,1751988644790,-404.73949645,0.00019452,2]
[370383059,1751988644800,-460.0,0.00019452,2]
[370383060,1751988644809,-901.2,0.00019452,2]
[370383061,1751988644819,-460.0,0.00019452,2]
[370383062,1751988644828,-862.21,0.00019452,2]
[370383063,1751988644838,-460.0,0.00019452,2]
[370383064,1751988644847,-2753.27,0.00019452,2]
[370383065,1751988644857,-835.38,0.00019452,2]
[370383066,1751988644867,-460.0,0.00019452,2]
[370383067,1751988644876,-658.66,0.00019452,2]
[370383068,1751988644885,-460.0,0.00019452,2]
[370383069,1751988644894,-460.0,0.00019452,2]
[370383070,1751988644904,-3833.71,0.00019452,2]
[370383071,1751988644914,-428.47155765,0.00019452,2]
[370383072,1751988644923,-550.0,0.00019452,2]
[370383073,1751988644933,-460.0,0.00019452,2]
[370383074,1751988644944,-460.0,0.00019452,2]
[370383075,1751988644953,-460.0,0.00019452,2]
[370383076,1751988644963,-646.83,0.00019452,2]
[370383077,1751988644972,-724.43,0.00019452,2]
[370383078,1751988644981,-460.0,0.00019452,2]
[370383079,1751988644991,-673.37,0.00019452,2]
[370383080,1751988645000,-460.0,0.00019452,2]
[370383081,1751988645010,-460.0,0.00019452,2]
[370383082,1751988645020,-664.63,0.00019452,2]
[370383083,1751988645030,-1708.39,0.00019452,2]
[370383084,1751988645040,-460.0,0.00019452,2]
[370383085,1751988645049,-597.74,0.00019452,2]
[370383086,1751988645058,-844.71,0.00019452,2]
[370383087,1751988645068,-2473.14,0.00019452,2]
[370383088,1751988645077,-487.61,0.00019452,2]
[370383089,1751988645087,-646.14,0.00019452,2]
[370383090,1751988645096,-460.0,0.00019452,2]
[370383091,1751988645106,-1506.99,0.00019452,2]
[370383092,1751988645115,-460.0,0.00019452,2]
[370383093,1751988645125,-460.0,0.00019452,2]
[370383094,1751988645134,-460.0,0.00019452,2]
[370383095,1751988645144,-460.0,0.00019452,2]
[370383096,1751988645154,-460.0,0.00019452,2]
[370383097,1751988645163,-460.0,0.00019452,2]
[370383098,1751988645173,-2788.13,0.00019452,2]
[370383099,1751988645182,-460.0,0.00019452,2]
[370383100,1751988645193,-460.0,0.00019452,2]
[370383101,1751988645203,-460.0,0.00019452,2]
[370383102,1751988645212,-688.11,0.00019452,2]
[370383103,1751988645222,-460.0,0.00019452,2]
[370383104,1751988645231,-460.0,0.00019452,2]
[370383105,1751988645241,-248.33072872,0.00019452,2]
[370383106,1751988645250,-460.0,0.00019452,2]
[370383107,1751988645260,-460.0,0.00019452,2]
[370383108,1751988645269,-460.0,0.00019452,2]
[370383109,1751988645278,-460.0,0.00019452,2]
[370383110,1751988645288,-216.26555427,0.00019452,2]
[370383111,1751988645297,-460.0,0.00019452,2]
[370383112,1751988645307,-460.0,0.00019452,2]
[370383113,1751988645316,-752.17,0.00019452,2]
[370383114,1751988645326,-707.53,0.00019452,2]
[370383115,1751988645335,-694.91,0.00019452,2]
[370383116,1751988645345,-460.0,0.00019452,2]
[370383117,1751988645497,-460.0,0.00019452,2]
[370383118,1751988645511,-460.0,0.00019452,2]
[370383119,1751988645520,-460.0,0.00019452,2]
[370383120,1751988645530,-2901.31,0.00019452,2]
[370383121,1751988645542,-460.0,0.00019452,2]
[370383122,1751988645551,-460.0,0.00019452,2]
[370383123,1751988645561,-605.75,0.00019452,2]
[370383124,1751988645570,-460.0,0.00019452,2]
[370383125,1751988645581,-460.0,0.00019452,2]
[370383126,1751988645591,-1269.5,0.00019452,2]
[370383127,1751988645600,-460.0,0.00019452,2]
[370383128,1751988645610,-460.0,0.00019452,2]
[370383129,1751988645620,-460.0,0.00019452,2]
[370383130,1751988645629,-5408.87,0.00019452,2]
[370383131,1751988645639,-4052.16,0.00019452,2]
[370383132,1751988645649,-723.51,0.00019452,2]
[370383133,1751988645658,-460.0,0.00019452,2]
[370383134,1751988645668,-460.0,0.00019452,2]
[370383135,1751988645678,-460.0,0.00019452,2]
[370383136,1751988645688,-460.0,0.00019452,2]
[370383137,1751988645698,-2441.44,0.00019452,2]
[370383138,1751988645708,-460.0,0.00019452,2]
[370383139,1751988645718,-1137.52,0.00019452,2]
[370383140,1751988645727,-681.91,0.00019452,2]
[370383141,1751988645737,-510.15,0.00019452,2]
[370383142,1751988645747,-776.58,0.00019452,2]
[370383143,1751988645756,-1009.01,0.00019452,2]
[370383144,1751988645766,-460.0,0.00019452,2]
[370383145,1751988645776,-1454.34,0.00019452,2]
[370383146,1751988645786,-677.21,0.00019452,2]
[370383147,1751988645796,-2559.5,0.00019452,2]
[370383148,1751988645806,-460.0,0.00019452,2]
[370383149,1751988645815,-960.91,0.00019452,2]
[370383150,1751988645825,-510.04,0.00019452,2]
[370383151,1751988645834,-460.0,0.00019452,2]
[370383152,1751988645843,-460.0,0.00019452,2]
[370383153,1751988645853,-3140.82,0.00019452,2]
[370383154,1751988645863,-460.0,0.00019452,2]
[370383155,1751988645872,-460.0,0.00019452,2]
[370383156,1751988645882,-507.52,0.00019452,2]
[370383157,1751988645892,-151.0,0.000195,2]
[370383158,1751988645902,-151.0,0.000195,2]
[370383159,1751988645912,-690.642,0.00019513,2]
[370383160,1751988645922,-151.0,0.00019513,2]
[370383161,1751988645931,-151.0,0.00019513,2]
[370383162,1751988645942,-151.0,0.00019513,2]
[370383163,1751988645951,-207.4,0.00019513,2]
[370383164,1751988645961,-151.0,0.00019513,2]
[370383165,1751988645971,-151.0,0.00019513,2]
[370383166,1751988645982,-151.0,0.00019513,2]
[370383167,1751988645994,-500.0,0.00019513,2]
[370383168,1751988646003,-151.0,0.00019513,2]
[370383169,1751988646013,-500.0,0.00019513,2]
[370383170,1751988646023,-151.0,0.00019513,2]
[370383171,1751988646032,-500.0,0.00019513,2]
[370383172,1751988646042,-151.0,0.00019513,2]
[370383173,1751988646052,-500.0,0.00019513,2]
[370383174,1751988646065,-500.0,0.00019513,2]
[370383175,1751988646082,-500.0,0.00019513,2]
[370383176,1751988646091,-500.0,0.00019513,2]
[370383177,1751988646101,-500.0,0.00019513,2]
[370383178,1751988646110,-151.0,0.00019513,2]
[370383179,1751988646119,-500.0,0.00019513,2]
[370383180,1751988646129,-151.0,0.00019513,2]
[370383181,1751988646138,-500.0,0.00019513,2]
[370383182,1751988646148,-151.0,0.00019513,2]
[370383183,1751988646157,-500.0,0.00019513,2]
[370383184,1751988646167,-151.0,0.00019513,2]
[370383185,1751988646176,-561.54135328,0.00019513,2]
[370383186,1751988646189,-151.0,0.00019513,2]
[370383187,1751988646198,-25000.0,0.00019513,2]
[370383188,1751988646208,-23148.12208278,0.00019513,2]
[370383189,1751988646219,-500.0,0.00019515,2]
[370383190,1751988646228,-500.0,0.00019542,2]
[370383191,1751988646238,-716.195754,0.00019568,2]
[370383192,1751988646248,-151.0,0.000196,2]
[370383193,1751988646258,-151.0,0.000196,2]
[370383194,1751988646267,-748.96990294,0.00019602,2]
[370383195,1751988646277,-742.6949969,0.00019623,2]
[370383196,1751988646286,-6000.12112762,0.00019624,2]
[370383197,1751988646296,-500.0,0.00019636,2]
[370383198,1751988646305,-500.0,0.0001967,2]
[370383199,1751988646314,-655.18760459,0.00019678,2]
[370383200,1751988646324,-151.0,0.000197,2]
[370383201,1751988646333,-500.0,0.00019721,2]
[370383202,1751988646343,-1000.0,0.00019721,2]
[370383203,1751988646352,-500.0,0.00019721,2]
[370383204,1751988646362,-1000.0,0.00019721,2]
[370383205,1751988646371,-1001.55669578,0.00019721,2]
[370383206,1751988646380,-1000.0,0.00019721,2]
[370383207,1751988646390,-1000.0,0.00019721,2]
[370383209,1751988646399,-1000.0,0.00019721,2]
[370383211,1751988646409,-500.0,0.00019721,2]
[370383213,1751988646418,-1000.0,0.00019721,2]
[370383215,1751988646427,-460.0,0.00019726,2]
[370383218,1751988646446,-460.0,0.00019726,2]
[370383221,1751988646461,-460.0,0.00019726,2]
[370383223,1751988646472,-460.0,0.00019726,2]
[370383225,1751988646482,-460.0,0.00019726,2]
[370383227,1751988646492,-460.0,0.00019726,2]
[370383229,1751988646502,-514.87927659,0.00019726,2]
[370383231,1751988646512,-465.858489,0.00019726,2]
[370383233,1751988646523,-460.0,0.00019726,2]
[370383236,1751988646534,-460.0,0.00019726,2]
[370383238,1751988646545,-460.0,0.00019726,2]
[370383240,1751988646555,-270.13,0.00019726,2]
[370383242,1751988646565,-460.0,0.00019726,2]
[370383244,1751988646575,-1027.44,0.00019726,2]
[370383246,1751988646584,-460.0,0.00019726,2]
[370383248,1751988646595,-460.0,0.00019726,2]
[370383250,1751988646604,-460.0,0.00019726,2]
[370383252,1751988646618,-460.0,0.00019726,2]
[370383254,1751988646629,-366.48812711,0.00019726,2]
[370383256,1751988646642,-460.0,0.00019726,2]
[370383258,1751988646653,-863.55,0.00019726,2]
[370383260,1751988646663,-460.0,0.00019726,2]
[370383261,1751988646672,-460.0,0.00019726,2]
[370383262,1751988646682,-592.45,0.00019726,2]
[370383263,1751988646695,-460.0,0.00019726,2]
[370383264,1751988646705,-229.07473507,0.00019726,2]
[370383265,1751988646715,-512.5,0.00019726,2]
[370383266,1751988646725,-941.19,0.00019726,2]
[370383267,1751988646735,-460.0,0.00019726,2]
[370383268,1751988646745,-460.0,0.00019726,2]
[370383269,1751988646755,-460.0,0.00019726,2]
[370383270,1751988646765,-460.0,0.00019726,2]
[370383271,1751988646775,-460.0,0.00019726,2]
[370383273,1751988646784,-460.0,0.00019726,2]
[370383274,1751988646794,-460.0,0.00019726,2]
[370383275,1751988646804,-460.0,0.00019726,2]
[370383276,1751988646814,-460.0,0.00019726,2]
[370383277,1751988646823,-460.0,0.00019726,2]
[370383278,1751988646833,-898.19,0.00019726,2]
[370383279,1751988646843,-534.19152515,0.00019726,2]
[370383280,1751988646853,-181.97164219,0.00019726,2]
[370383281,1751988646863,-468.58,0.00019726,2]
[370383282,1751988646873,-811.62,0.00019726,2]
[370383283,1751988646883,-862.49,0.00019726,2]
[370383284,1751988646893,-460.0,0.00019726,2]
[370383285,1751988646903,-460.0,0.00019726,2]
[370383286,1751988646913,-510.43,0.00019726,2]
[370383287,1751988646923,-460.0,0.00019726,2]
[370383288,1751988646933,-460.0,0.00019726,2]
[370383289,1751988646944,-1555.07,0.00019726,2]
[370383290,1751988646954,-524.76607357,0.00019726,2]
[370383291,1751988646964,-460.0,0.00019726,2]
[370383292,1751988646974,-460.0,0.00019726,2]
[370383293,1751988646984,-328.76327057,0.00019726,2]
[370383294,1751988646994,-855.52,0.00019726,2]
[370383295,1751988647004,-460.0,0.00019726,2]
[370383296,1751988647014,-460.0,0.00019726,2]
[370383297,1751988647024,-545.34,0.00019726,2]
[370383298,1751988647033,-633.51,0.00019726,2]
[370383299,1751988647043,-460.0,0.00019726,2]
[370383300,1751988647054,-460.0,0.00019726,2]